bitfinex-derivatives/quotes_SOLF0:USTF0_20251108
["timestamp","ask_amount","ask_price","bid_price","bid_amount"]
[1762562883093,3.1,162.02,161.98,2.95]
[1762562883094,3.1,162.02,161.99,0.03958197]
[1762562883289,3.1,162.02,161.99,2.98958197]
[1762562883502,8.6585,162.04,161.99,2.98958197]
[1762562884088,5.5577,162.06,161.99,2.98958197]
[1762562884402,3.1,162.08,162.02,2.95]
[1762562884593,8.6571,162.08,162.04,2.95]
[1762562885102,5.5556,162.12,162.04,2.95]
[1762562885297,8.6556,162.12,162.07,2.95]
[1762562886103,3.1,162.12,162.07,2.95]
[1762562886501,3.1,162.17,162.08,2.95]
[1762562886801,3.1,162.15,162.11,0.04350966]
[1762562887502,3.1,162.15,162.11,2.99350966]
[1762562887805,82.16,162.18,162.11,2.99350966]
[1762562887994,87.7137,162.18,162.11,2.99350966]
[1762562888502,82.16,162.18,162.11,2.99350966]
[1762562888806,5.554,162.17,162.11,2.99350966]
[1762562889098,5.5544,162.16,162.11,2.99350966]
[1762562889401,82.16,162.18,162.11,2.99350966]
[1762562889798,5.5547,162.15,162.11,2.99350966]
[1762562890097,3.1,162.14,162.11,0.04350966]
[1762562890494,79.06,162.18,162.11,0.04350966]
[1762562890495,8.6554,162.13,162.11,0.04350966]
[1762562891198,3.1,162.12,162.11,0.04350966]
[1762562892598,3.1,162.14,162.11,0.04350966]
[1762562893399,8.6539,162.17,162.11,0.04350966]
[1762562893806,8.6539,162.17,162.11,2.99350966]
[1762562894910,3.1,162.16,162.11,0.04350966]
[1762562896109,8.6551,162.14,162.11,0.04350966]
[1762562897007,8.6555,162.13,162.11,0.04350966]
[1762562897311,3.1,162.12,162.11,0.04350966]
[1762562897609,3.1,162.14,162.11,0.04350966]
[1762562898204,8.6547,162.15,162.11,2.99350966]
[1762562898415,3.1,162.14,162.11,0.04350966]
[1762562898604,3.1,162.17,162.11,0.04350966]
[1762562899110,5.555,162.14,162.11,2.99350966]
[1762562899817,5.5553,162.13,162.11,0.04350966]
[1762562900713,3.1,162.14,162.11,0.04350966]
[1762562902718,8.6551,162.14,162.11,0.04350966]
[1762562903817,3.1,162.12,162.11,0.04350966]
[1762562907318,3.1,162.14,162.11,0.04350966]
[1762562909826,3.1,162.18,162.11,2.99350966]
[1762562910014,3.1,162.18,162.13,0.04450795]
[1762562910216,3.1,162.18,162.14,0.04641691]
[1762562910611,3.1,162.15,162.14,0.04641691]
[1762562916024,3.09,162.17,162.14,0.04641691]
[1762562916224,3.09,162.21,162.14,3.09641691]
[1762562916432,3.09,162.21,162.16,3.09637854]
[1762562916724,3.09,162.21,162.17,0.04090962]
[1762562918020,8.6431,162.2,162.17,0.04090962]
[1762562918426,3.09,162.19,162.17,0.04090962]
[1762562918727,8.6433,162.19,162.17,0.04090962]
[1762562921627,3.0,162.18,162.17,0.04090962]
[1762562922625,5.5526,162.21,162.17,0.04090962]
[1762562922824,8.5526,162.21,162.17,3.12090962]
[1762562923738,5.5529,162.2,162.17,3.12090962]
[1762562925041,3.0,162.21,162.17,3.12090962]
[1762562925246,5.5521,162.22,162.17,3.12090962]
[1762562925740,3.0,162.24,162.18,1.92808466]
[1762562925936,3.0,162.24,162.18,5.00808466]
[1762562926941,5.5519,162.23,162.18,5.00808466]
[1762562927143,8.5519,162.23,162.18,5.00808466]
[1762562927345,8.5519,162.23,162.19,3.08]
[1762562930846,5.5512,162.25,162.2,1.92808466]
[1762562931049,5.5512,162.25,162.21,3.12159078]
[1762562931345,8.5515,162.24,162.21,0.04159078]
[1762562932751,5.5519,162.23,162.21,0.04159078]
[1762562932947,3.0,162.22,162.21,0.04159078]
[1762562937146,3.0,162.24,162.21,0.04159078]
[1762562937350,3.0,162.24,162.21,3.12159078]
[1762562938847,3.0,162.23,162.21,0.04159078]
[1762562939956,8.5518,162.23,162.21,0.04159078]
[1762562940358,5.5513,162.25,162.21,3.12159078]
[1762562940660,3.0,162.28,162.22,5.00808466]
[1762562940887,3.0,162.28,162.24,3.08]
[1762562941053,3.0,162.29,162.25,3.08]
[1762562941456,1.92808466,162.33,162.26,5.00808466]
[1762562941457,3.0,162.33,162.26,5.00808466]
[1762562941657,3.0,162.33,162.28,0.04607268]
[1762562942362,8.5485,162.33,162.28,0.04607268]
[1762562942556,3.12,162.32,162.28,0.04607268]
[1762562942762,3.12,162.32,162.28,0.04333436]
[1762562943363,8.6688,162.32,162.28,0.04333436]
[1762562943555,3.12,162.31,162.28,3.01333436]
[1762562943761,3.12,162.31,162.28,0.04333436]
[1762562944458,3.12,162.34,162.28,3.01333436]
[1762562944765,3.12,162.34,162.29,3.01345311]
[1762562945061,3.12,162.33,162.29,3.01345311]
[1762562945359,3.12,162.4,162.29,3.01345311]
[1762562945567,3.12,162.36,162.33,0.04614047]
[1762562947161,3.12,162.34,162.33,0.04614047]
[1762562947460,78.94,162.41,162.33,0.04614047]
[1762562947461,3.12,162.4,162.33,0.04614047]
[1762562948362,3.12,162.36,162.33,0.04614047]
[1762562948956,3.12,162.39,162.33,3.01614047]
[1762562949354,78.94,162.41,162.33,3.01614047]
[1762562949864,84.486,162.41,162.34,2.97]
[1762562951274,5.5462,162.4,162.34,2.97]
[1762562951471,3.12,162.4,162.34,2.97]
[1762562951861,8.6661,162.4,162.34,2.97]
[1762562952074,3.12,162.4,162.34,2.97]
[1762562952571,86.1984,162.54,162.35,2.97]
[1762562952572,3.12,162.44,162.35,2.97]
[1762562952760,3.12,162.44,162.39,2.97]
[1762562953671,3.12,162.51,162.39,2.97]
[1762562953868,3.12,162.48,162.43,0.04577207]
[1762562954663,8.6634,162.48,162.43,3.01577207]
[1762562954860,508.2855,162.74,162.43,3.01577207]
[1762562954861,3.12,162.56,162.43,3.01577207]
[1762562955075,5.5411,162.55,162.43,8.5149]
[1762562955270,3.12,162.56,162.48,0.04640378]
[1762562955271,3.12,162.54,162.48,0.04640378]
[1762562955467,3.12,162.54,162.44,2.97]
[1762562955672,3.12,162.52,162.49,0.04323845]
[1762562958178,5.5407,162.56,162.49,3.01323845]
[1762562958405,3.12,162.55,162.51,3.01695457]
[1762562958579,3.12,162.55,162.51,0.04695457]
[1762562958979,8.6611,162.55,162.51,0.04695457]
[1762562959179,3.12,162.54,162.51,0.04695457]
[1762562959778,3.12,162.53,162.51,0.04695457]
[1762562961075,5.5415,162.54,162.51,0.04695457]
[1762562961275,8.6615,162.54,162.51,0.04695457]
[1762562961493,5.01482141,162.58,162.51,0.04695457]
[1762562961494,3.12,162.57,162.51,3.01695457]
[1762562961786,5.541,162.55,162.52,0.04195344]
[1762562962510,8.661,162.55,162.52,0.04195344]
[1762562963493,3.12,162.55,162.52,0.04195344]
[1762562965394,3.12,162.58,162.53,1.91998746]
[1762562965613,3.12,162.58,162.53,4.88998746]
[1762562966091,3.12,162.58,162.54,2.97]
[1762562966297,5.5394,162.6,162.54,2.97]
[1762562966493,3.12,162.6,162.55,3.01563257]
[1762562967895,3.12,162.6,162.56,1.91998746]
[1762562968198,3.12,162.6,162.56,4.88998746]
[1762562968891,8.6593,162.6,162.56,4.88998746]
[1762562969195,5.5393,162.6,162.56,4.88998746]
[1762562969394,8.6593,162.6,162.56,2.97]
[1762562969600,3.12,162.59,162.55,0.04563257]
[1762562969797,3.12,162.59,162.55,3.01563257]
[1762562969992,3.12,162.59,162.56,1.91998746]
[1762562970899,5.5393,162.6,162.56,4.88998746]
[1762562971194,8.6593,162.6,162.57,2.97]
[1762562971405,3.12,162.6,162.57,2.97]
[1762562972593,3.13,162.56,162.55,0.04563257]
[1762562973997,3.13,162.59,162.55,0.04563257]
[1762562974921,8.6704,162.57,162.55,0.04563257]
[1762562976099,3.13,162.56,162.55,0.04563257]
[1762562976993,3.13,162.53,162.47,3.14]
[1762562977192,3.13,162.53,162.47,5.05998746]
[1762562977592,3.13,162.53,162.48,3.14]
[1762562977988,0.04164305,162.52,162.49,0.04165669]
[1762562978196,0.04164305,162.52,162.49,3.18165669]
[1762562978704,3.17164305,162.52,162.49,0.04165669]
[1762562979199,8.6724,162.51,162.49,0.04165669]
[1762562979895,3.13,162.5,162.49,0.04165669]
[1762562982194,3.09,162.48,162.41,2.94]
[1762562982400,1.91998746,162.47,162.41,2.94]
[1762562982693,3.09,162.48,162.41,2.94]
[1762562982898,5.00998746,162.51,162.43,2.94]
[1762562983300,5.00998746,162.51,162.46,2.94]
[1762562983301,0.04556477,162.49,162.46,2.94]
[1762562984094,0.04556477,162.49,162.45,0.04305246]
[1762562984095,5.05555223,162.49,162.45,0.04305246]
[1762562984301,3.09,162.46,162.45,0.04305246]
[1762562984508,3.09,162.46,162.45,0.00325306]
[1762562985795,8.635,162.43,162.36,8.4871]
[1762562985994,11.085,162.51,162.36,2.94]
[1762562985995,3.09,162.42,162.36,2.94]
[1762562986507,3.09,162.42,162.38,2.94]
[1762562986705,3.09,162.47,162.38,2.94]
[1762562986906,0.04212361,162.44,162.43,8.4848]
[1762562987311,8.6327,162.5,162.43,8.4848]
[1762562987903,3.09,162.5,162.44,2.94]
[1762562988305,0.04245148,162.49,162.46,2.94]
[1762562989408,0.04245148,162.49,162.47,5.5433]
[1762562989599,0.04245148,162.49,162.48,2.94]
[1762562990505,0.04245148,162.49,162.46,2.94]
[1762562991211,0.04245148,162.49,162.46,8.4838]
[1762562991410,0.04245148,162.49,162.47,2.94]
[1762562991809,0.04245148,162.49,162.46,2.94]
[1762562992310,3.13245148,162.49,162.45,0.0465969]
[1762562993707,8.67545148,162.49,162.45,0.0465969]
[1762562994610,0.04245148,162.49,162.45,2.9865969]
[1762562995515,0.04245148,162.49,162.45,8.5306969]
[1762562996714,3.13245148,162.49,162.45,2.9865969]
[1762562997020,3.13245148,162.49,162.45,0.0465969]
[1762562997516,8.67545148,162.49,162.45,2.9865969]
[1762562999312,3.09,162.48,162.45,0.0465969]
[1762563001325,4.33,162.48,162.36,5.60422269]
[1762563001516,3.09,162.47,162.34,8.54422269]
[1762563001756,8.6361,162.4,162.34,2.94]
[1762563002022,3.09,162.39,162.34,2.94]
[1762563002224,3.15968205,162.38,162.35,0.04637721]
[1762563002414,0.03968205,162.38,162.35,3.17637721]
[1762563002619,0.03968205,162.38,162.36,3.13]
[1762563003125,3.15968205,162.38,162.35,0.04637721]
[1762563003522,3.12,162.36,162.35,0.04637721]
[1762563003829,0.03968205,162.38,162.35,0.04637721]
[1762563003830,3.15968205,162.38,162.35,0.04637721]
[1762563006117,3.12,162.36,162.35,0.04637721]
[1762563007523,3.12,162.33,162.27,5.5502]
[1762563007726,3.12,162.33,162.27,3.13]
[1762563008523,3.00871133,162.35,162.28,0.04153748]
[1762563008524,8.70872285,162.32,162.28,0.04153748]
[1762563008831,3.12,162.31,162.28,0.04153748]
[1762563009028,8.6692,162.31,162.28,0.04153748]
[1762563009228,3.12,162.3,162.28,0.04153748]
[1762563009525,3.15982285,162.32,162.28,3.17153748]
[1762563011119,3.12,162.31,162.28,0.04153748]
[1762563012422,3.12,162.29,162.28,0.04153748]
[1762563012628,3.12,162.29,162.2,3.13]
[1762563013032,3.12,162.29,162.21,8.6823]
[1762563013433,5.5502,162.28,162.21,8.6823]
[1762563013636,3.16050968,162.27,162.23,0.04161767]
[1762563014025,3.12,162.26,162.23,0.04161767]
[1762563015035,0.04050968,162.27,162.23,8.72311767]
[1762563015237,3.16050968,162.27,162.23,0.04161767]
[1762563015736,3.12,162.24,162.23,0.04161767]
[1762563016734,3.12,162.24,162.14,3.13]
[1762563016932,3.12,162.25,162.14,3.13]
[1762563017439,8.6716,162.24,162.17,3.13]
[1762563017938,0.04015494,162.22,162.19,0.04362854]
[1762563018139,3.16015494,162.22,162.19,0.04362854]
[1762563019438,8.71245494,162.22,162.19,0.04362854]
[1762563019635,3.12,162.21,162.19,0.04362854]
[1762563020737,0.04015494,162.22,162.05,11.1159]
[1762563020738,3.12,162.2,162.11,3.13]
[1762563021242,3.12,162.17,162.08,3.13]
[1762563021643,3.12,162.17,162.11,0.04657436]
[1762563021830,0.04042513,162.14,162.11,3.17657436]
[1762563022037,3.16042513,162.14,162.11,0.04657436]
[1762563023043,3.12,162.12,162.11,0.04657436]
[1762563023942,3.16042513,162.14,162.11,0.04657436]
[1762563024440,8.71552513,162.14,162.11,0.04657436]
[1762563024641,3.12,162.13,162.11,0.04657436]
[1762563025239,3.12,162.12,162.11,0.04657436]
[1762563026843,3.12,162.12,162.02,3.13]
[1762563027247,3.12,162.1,162.02,8.6888]
[1762563027546,3.12,162.1,162.02,3.13]
[1762563027743,3.12,162.1,162.03,5.5585]
[1762563027949,3.1651782,162.08,162.05,0.044512]
[1762563028245,3.16261425,162.08,162.05,0.04444828]
[1762563029446,3.16261425,162.08,162.05,3.17444828]
[1762563029447,0.04261425,162.08,162.05,3.17444828]
[1762563029763,18.44272886,162.22,162.05,3.17444828]
[1762563029764,3.12,162.14,162.07,3.13]
[1762563030142,3.12,162.21,162.07,3.13]
[1762563030544,3.12,162.15,162.07,3.13]
[1762563030943,0.04562404,162.13,162.09,3.16922077]
[1762563031145,0.04067637,162.13,162.09,3.16922077]
[1762563031646,3.16067637,162.13,162.09,3.16922077]
[1762563033047,3.16067637,162.13,162.09,0.03922077]
[1762563033648,3.09,162.1,162.0,2.92]
[1762563034244,5.5578,162.06,162.0,2.92]
[1762563034444,3.09,162.06,162.0,2.92]
[1762563034740,0.03882179,162.05,162.02,2.92]
[1762563034953,0.04225958,162.05,162.02,2.96647922]
[1762563035253,3.13225958,162.05,162.02,0.04647922]
[1762563036646,8.69035958,162.05,162.02,0.04647922]
[1762563036949,3.13225958,162.05,162.02,0.04647922]
[1762563037457,0.04225958,162.05,162.02,0.04647922]
[1762563037647,0.04225958,162.05,162.02,2.96647922]
[1762563038147,3.13225958,162.05,162.02,0.04647922]
[1762563038344,0.04225958,162.05,162.02,2.96647922]
[1762563038542,0.04225958,162.05,162.04,2.92]
[1762563041450,0.04225958,162.05,162.02,0.04647922]
[1762563041651,0.04225958,162.05,162.02,3.12647922]
[1762563043045,3.16225958,162.05,162.02,0.04647922]
[1762563043757,8.6785,162.04,162.02,0.04647922]
[1762563045145,3.12,162.03,162.02,0.04647922]
[1762563045957,0.04225958,162.05,162.02,0.04647922]
[1762563046350,3.16225958,162.05,162.02,0.04647922]
[1762563046956,3.12,162.04,162.02,0.04647922]
[1762563048163,3.16225958,162.05,162.02,0.04647922]
[1762563048755,0.04225958,162.05,162.02,3.12647922]
[1762563049160,0.04225958,162.05,162.02,8.68537922]
[1762563049852,0.04225958,162.05,162.04,3.08]
[1762563051259,0.04225958,162.05,162.03,5.5585]
[1762563051560,0.04225958,162.05,162.02,3.12647922]
[1762563051953,0.04225958,162.05,162.03,8.6386]
[1762563052456,0.04225958,162.05,162.04,3.08]
[1762563053757,0.04225958,162.05,162.02,0.04647922]
[1762563053951,0.04225958,162.05,162.02,3.12647922]
[1762563054458,0.04225958,162.05,162.02,8.68537922]
[1762563054961,3.12,162.04,162.02,0.04647922]
[1762563055458,8.6784,162.04,162.02,0.04647922]
[1762563055761,0.04225958,162.05,162.02,0.04647922]
[1762563056361,5.5584,162.04,162.02,0.04647922]
[1762563056670,0.04225958,162.05,162.02,0.04647922]
[1762563057950,5.60035958,162.05,162.02,0.04647922]
[1762563058548,8.72035958,162.05,162.02,0.04647922]
[1762563058751,5.5584,162.04,162.02,0.04647922]
[1762563058963,3.12,162.03,162.02,0.04647922]
[1762563059663,0.04225958,162.05,162.02,3.12647922]
[1762563061059,0.04225958,162.05,162.04,3.08]
[1762563061451,0.04225958,162.05,162.02,3.12647922]
[1762563061652,3.16225958,162.05,162.02,0.04647922]
[1762563062256,2.98,162.03,162.02,0.04647922]
[1762563062955,3.02225958,162.05,162.02,0.04647922]
[1762563063464,3.02225958,162.05,161.93,7.54630454]
[1762563063465,2.98,161.99,161.94,2.98]
[1762563064158,5.5605,161.98,161.92,8.5423]
[1762563064357,2.98,161.99,161.92,2.98]
[1762563064563,5.03087326,162.04,161.92,2.98]
[1762563064564,3.02392143,161.97,161.94,0.04565848]
[1762563064761,3.01898162,161.97,161.94,0.04082717]
[1762563064960,8.5412,161.96,161.94,0.04082717]
[1762563065361,2.98,161.95,161.94,0.04082717]
[1762563065569,0.03898162,161.97,161.86,2.98]
[1762563065570,2.98,161.93,161.86,2.98]
[1762563066662,0.04214373,161.91,161.88,0.04665128]
[1762563067272,3.02214373,161.91,161.88,0.04665128]
[1762563067870,2.98,161.9,161.88,0.04665128]
[1762563068869,0.04214373,161.91,161.88,3.02665128]
[1762563069763,3.02214373,161.91,161.88,0.04665128]
[1762563070467,8.58524373,161.91,161.88,0.04665128]
[1762563070666,2.98,161.9,161.88,0.04665128]
[1762563071272,8.5433,161.9,161.88,0.04665128]
[1762563071457,4.22,161.89,161.8,2.98]
[1762563071656,5.03087326,161.9,161.75,7.54630454]
[1762563071657,2.98,161.88,161.76,2.98]
[1762563072061,2.98,161.87,161.78,5.5672]
[1762563072462,3.02636535,161.84,161.81,0.04643791]
[1762563074575,2.98,161.82,161.73,2.98]
[1762563075173,2.98,161.8,161.73,2.98]
[1762563075572,3.01978782,161.78,161.75,0.04636795]
[1762563076071,0.03978782,161.78,161.75,3.02636795]
[1762563076767,0.03978782,161.78,161.77,5.5676]
[1762563076965,2.98,161.85,161.78,2.98]
[1762563077163,11.41577832,162.03,161.78,2.98]
[1762563077164,2.98,161.88,161.78,2.98]
[1762563077373,2.98,161.9,161.83,2.98]
[1762563077964,0.03908461,161.88,161.85,0.04266268]
[1762563078273,3.01908461,161.88,161.85,0.04266268]
[1762563079372,2.98,161.86,161.72,5.03087326]
[1762563079678,2.98,161.86,161.73,2.98]
[1762563080564,0.03982187,161.81,161.78,0.04463991]
[1762563080771,0.03927263,161.81,161.78,3.02677397]
[1762563083263,0.03927263,161.81,161.78,8.59377397]
[1762563083469,0.03927263,161.81,161.78,3.02677397]
[1762563084071,3.01927263,161.81,161.78,0.04677397]
[1762563084572,2.98,161.79,161.71,2.98]
[1762563085076,2.98,161.77,161.71,2.98]
[1762563085372,2.98,161.81,161.71,2.98]
[1762563085592,0.0459916,161.78,161.74,0.03612085]
[1762563085772,3.0259916,161.78,161.74,0.03612085]
[1762563086067,0.0459916,161.78,161.74,3.01612085]
[1762563087578,2.98,161.77,161.74,0.03612085]
[1762563088270,5.5682,161.76,161.74,0.03612085]
[1762563088472,2.98,161.75,161.74,0.03612085]
[1762563088687,2.98,161.75,161.68,2.98]
[1762563088878,2.98,161.73,161.68,2.98]
[1762563089080,2.98,161.77,161.68,2.98]
[1762563089669,0.04401646,161.74,161.68,2.98]
[1762563090475,0.04401646,161.74,161.71,2.98]
[1762563090685,0.04074785,161.74,161.71,2.98]
[1762563090980,0.04074785,161.74,161.68,5.5705]
[1762563091181,0.039544,161.73,161.69,2.98]
[1762563091774,0.039544,161.73,161.64,5.03087326]
[1762563091775,0.039544,161.73,161.71,2.98]
[1762563093081,0.039544,161.73,161.71,8.5495]
[1762563093284,0.039544,161.73,161.71,2.98]
[1762563093478,0.039544,161.73,161.72,3.01]
[1762563096595,0.039544,161.73,161.71,8.5795]
[1762563097293,0.039544,161.73,161.71,3.01]
[1762563098003,3.169544,161.73,161.65,3.01]
[1762563098286,0.04725588,161.71,161.65,3.01]
[1762563098591,5.61705588,161.71,161.65,3.01]
[1762563098791,3.17725588,161.71,161.65,3.01]
[1762563099292,5.5705,161.69,161.65,3.01]
[1762563099988,8.74715588,161.71,161.65,3.01]
[1762563100189,3.17725588,161.71,161.65,3.01]
[1762563100588,8.7004,161.69,161.63,5.5722]
[1762563100782,8.7004,161.69,161.64,3.01]
[1762563100783,0.04087094,161.68,161.64,3.01]
[1762563101192,0.04087094,161.68,161.64,8.5819]
[1762563101387,0.04087094,161.68,161.65,3.16]
[1762563101589,0.04531143,161.68,161.65,3.16]
[1762563102586,0.04531143,161.68,161.58,430.83833361]
[1762563102587,0.04531143,161.68,161.66,3.16]
[1762563102889,0.04725821,161.69,161.66,3.16]
[1762563103895,0.04725821,161.69,161.68,3.16]
[1762563104096,0.04672452,161.7,161.68,3.16]
[1762563105190,0.04672452,161.7,161.68,8.7306]
[1762563105395,2.96,161.78,161.69,3.16]
[1762563105990,2.96,161.78,161.68,3.16]
[1762563106394,2.96,161.78,161.74,3.16]
[1762563106395,0.04199348,161.75,161.74,3.16]
[1762563107193,0.04199348,161.75,161.73,5.6119652]
[1762563107392,0.04199348,161.75,161.73,8.7719652]
[1762563107794,0.04199348,161.75,161.73,3.2030652]
[1762563108089,3.00199348,161.75,161.73,0.0430652]
[1762563108697,8.57039348,161.75,161.73,0.0430652]
[1762563111994,2.96,161.74,161.73,0.0430652]
[1762563113299,0.04199348,161.75,161.73,3.2030652]
[1762563114601,0.04199348,161.75,161.73,8.7718652]
[1762563114900,0.04199348,161.75,161.74,3.16]
[1762563115096,0.04199348,161.75,161.73,5.6118652]
[1762563115404,0.04199348,161.75,161.74,3.16]
[1762563117903,8.5258,161.83,161.76,3.16]
[1762563118497,2.96,161.82,161.76,3.16]
[1762563118802,2.96,161.8,161.77,0.03952747]
[1762563118998,2.96,161.8,161.77,0.04295989]
[1762563120505,2.96,161.78,161.77,0.04295989]
[1762563120801,2.96,161.78,161.7,10.70630454]
[1762563120802,2.96,161.78,161.7,8.84946211]
[1762563121102,8.528,161.76,161.7,8.7299]
[1762563121406,8.528,161.76,161.7,3.16]
[1762563121701,0.04504549,161.75,161.71,3.20362416]
[1762563122095,8.57334549,161.75,161.71,3.20362416]
[1762563122492,3.00504549,161.75,161.71,3.20362416]
[1762563122818,0.04504549,161.75,161.72,8.4992]
[1762563123706,3.01504549,161.75,161.71,2.97362416]
[1762563125209,3.01504549,161.75,161.71,8.54322416]
[1762563125411,3.01504549,161.75,161.71,14.23268627]
[1762563126103,8.58344549,161.75,161.71,2.97362416]
[1762563126308,2.97,161.74,161.71,0.04362416]
[1762563126801,2.97,161.74,161.71,8.54322416]
[1762563127005,2.97,161.81,161.72,2.93]
[1762563127204,2.97,161.81,161.75,5.68946211]
[1762563127504,2.97,161.78,161.74,14.18796211]
[1762563127811,2.97,161.78,161.75,5.68946211]
[1762563128001,2.97,161.78,161.75,0.04189167]
[1762563128207,0.0467689,161.78,161.75,2.97189167]
[1762563128406,0.0467689,161.78,161.75,14.22955378]
[1762563129016,0.0467689,161.78,161.76,8.4978]
[1762563129200,0.0467689,161.78,161.77,2.93]
[1762563129409,2.97,161.85,161.77,8.61946211]
[1762563129705,18.73571888,161.92,161.76,5.68946211]
[1762563129706,2.97,161.8,161.76,5.68946211]
[1762563129904,2.97,161.8,161.75,2.93]
[1762563130307,0.04519963,161.79,161.76,0.04417868]
[1762563130499,0.04519963,161.79,161.76,2.97417868]
[1762563131208,0.04519963,161.79,161.76,8.66364079]
[1762563131508,0.04519963,161.79,161.77,2.93]
[1762563132098,0.04519963,161.79,161.77,8.61946211]
[1762563132909,0.04519963,161.79,161.77,2.93]
[1762563133601,3.01519963,161.79,161.76,0.04417868]
[1762563134206,2.97,161.77,161.76,0.04417868]
[1762563134406,2.97,161.77,161.72,5.68946211]
[1762563134907,2.97,161.77,161.71,8.61946211]
[1762563135110,24.15681985,161.84,161.71,8.61946211]
[1762563135111,2.97,161.75,161.71,8.61946211]
[1762563135311,0.04031171,161.75,161.72,8.61946211]
[1762563135608,0.04031171,161.75,161.73,8.61946211]
[1762563135805,0.04031171,161.75,161.74,2.93]
[1762563136007,2.97,161.82,161.75,2.93]
[1762563136305,8.5359,161.82,161.76,11.33587137]
[1762563136503,2.97,161.82,161.76,11.33587137]
[1762563136901,0.0464958,161.81,161.77,0.04338666]
[1762563137101,3.0164958,161.81,161.77,0.04338666]
[1762563137498,2.97,161.79,161.77,0.04338666]
[1762563138705,8.537,161.79,161.77,0.04338666]
[1762563139006,2.97,161.78,161.77,0.04338666]
[1762563141905,5.6129958,161.81,161.77,0.04338666]
[1762563142112,2.97,161.79,161.77,0.04338666]
[1762563143005,8.5372,161.78,161.77,0.04338666]
[1762563146716,9.7772,161.78,161.77,0.04338666]
[1762563148011,2.97,161.72,161.7,5.76807137]
[1762563148213,2.97,161.72,161.68,5.76807137]
[1762563148516,8.5403,161.69,161.67,5.76807137]
[1762563148714,2.97,161.68,161.66,5.76807137]
[1762563148909,0.04577602,161.69,161.66,5.76807137]
[1762563149109,5.5708,161.68,161.66,5.8113246]
[1762563150015,3.01208059,161.69,161.66,5.8113246]
[1762563151219,8.5407,161.68,161.66,5.8113246]
[1762563151514,2.97,161.67,161.66,0.04325323]
[1762563159919,2.97,161.67,161.59,2.93]
[1762563160125,2.9,161.65,161.59,2.93]
[1762563160319,2.9,161.65,161.56,8.74807137]
[1762563160722,2.9,161.63,161.57,2.98]
[1762563161119,2.9,161.61,161.58,0.04381495]
[1762563161428,5.5742,161.58,161.54,2.98]
[1762563161630,5.6140415,161.58,161.57,0.03964749]
[1762563162127,8.5140415,161.58,161.57,0.03964749]
[1762563169530,2.9,161.53,161.47,2.94]
[1762563170027,8.4764,161.52,161.47,2.94]
[1762563170435,2.9,161.52,161.47,2.94]
[1762563170635,0.04143204,161.51,161.47,2.94]
[1762563171738,0.04143204,161.51,161.49,2.94]
[1762563176443,0.04143204,161.51,161.5,2.94]
[1762563179637,2.9,161.6,161.52,2.94]
[1762563180244,8.4745,161.57,161.52,2.94]
[1762563180640,0.03995155,161.56,161.53,2.98270078]
[1762563181138,2.9,161.64,161.55,2.94]
[1762563181345,2.9,161.67,161.55,2.94]
[1762563181933,5.5716,161.66,161.61,2.94]
[1762563182135,0.04706382,161.63,161.61,2.94]
[1762563182344,3.15706382,161.63,161.6,0.04011746]
[1762563182645,3.11,161.59,161.49,2.93]
[1762563182846,0.04557178,161.56,161.53,2.93]
[1762563183442,3.15557178,161.56,161.52,0.04532358]
[1762563183639,3.15557178,161.56,161.52,2.97532358]
[1762563184048,8.6856,161.54,161.52,0.04532358]
[1762563184249,0.04557178,161.56,161.52,2.97532358]
[1762563187946,3.11,161.65,161.54,2.93]
[1762563188147,3.11,161.69,161.61,2.93]
[1762563188548,84.8099,161.71,161.62,5.5725]
[1762563188745,84.8099,161.71,161.55,4.49812897]
[1762563188746,84.8099,161.71,161.63,2.93]